[Event "Titled Tuesday Blitz May 25 2021"]
[White "Koellner, Ruben Gideon"]
[Black "Buchenau, Frank"]
[WhiteFideId "12993093"]
[BlackFideId "4604350"]
[WhiteElo "2518"]
[BlackElo "2255"]
[Result "1-0"]
[Round "09"]
[TimeControl "180+1"]
[Date "2021.05.25"]
[WhiteClock "0:00:09"]
[BlackClock "0:00:03"]

1. d4 {[%clk 0:03:00]}  e6 {[%clk 0:02:59]} 2. Nf3 {[%clk 0:02:55]}  Nf6 {[%clk 0:02:59]} 3. Nbd2 {[%clk 0:02:54]}  b6 {[%clk 0:02:57]} 4. e4 {[%clk 0:02:54]}  d5 {[%clk 0:02:55]} 5. e5 {[%clk 0:02:52]}  Nfd7 {[%clk 0:02:55]} 6. c3 {[%clk 0:02:52]}  c5 {[%clk 0:02:55]} 7. Bd3 {[%clk 0:02:49]}  Ba6 {[%clk 0:02:54]} 8. Bxa6 {[%clk 0:02:49]}  Nxa6 {[%clk 0:02:55]} 9. Qe2 {[%clk 0:02:50]}  Nc7 {[%clk 0:02:54]} 10. O-O {[%clk 0:02:51]}  Be7 {[%clk 0:02:53]} 11. Rd1 {[%clk 0:02:46]}  c4 {[%clk 0:02:53]} 12. Nf1 {[%clk 0:02:46]}  b5 {[%clk 0:02:53]} 13. Ne1 {[%clk 0:02:36]}  Nb6 {[%clk 0:02:35]} 14. f4 {[%clk 0:02:32]}  g6 {[%clk 0:02:34]} 15. g4 {[%clk 0:02:32]}  h5 {[%clk 0:02:34]} 16. h3 {[%clk 0:02:32]}  hxg4 {[%clk 0:02:33]} 17. hxg4 {[%clk 0:02:33]}  Kd7 {[%clk 0:02:24]} 18. Nf3 {[%clk 0:02:32]}  Qg8 {[%clk 0:02:23]} 19. Ng3 {[%clk 0:02:26]}  Qh7 {[%clk 0:02:15]} 20. Kf2 {[%clk 0:02:26]}  Qh3 {[%clk 0:02:10]} 21. Ng1 {[%clk 0:01:52]}  Qh2+ {[%clk 0:02:07]} 22. Kf3 {[%clk 0:01:52]}  a5 {[%clk 0:01:49]} 23. Qxh2 {[%clk 0:01:44]}  Rxh2 {[%clk 0:01:48]} 24. N1e2 {[%clk 0:01:45]}  b4 {[%clk 0:01:42]} 25. f5 {[%clk 0:01:29]}  gxf5 {[%clk 0:01:41]} 26. gxf5 {[%clk 0:01:30]}  Bh4 {[%clk 0:01:14]} 27. f6 {[%clk 0:01:03]}  Nb5 {[%clk 0:01:07]} 28. Bf4 {[%clk 0:00:53]}  Na4 {[%clk 0:00:53]} 29. Nh1 {[%clk 0:00:23]}  Rxe2 {[%clk 0:00:36]} 30. Kxe2 {[%clk 0:00:19]}  bxc3 {[%clk 0:00:35]} 31. b3 {[%clk 0:00:18]}  Nb2 {[%clk 0:00:27]} 32. Rf1 {[%clk 0:00:12]}  Nxd4+ {[%clk 0:00:20]} 33. Ke3 {[%clk 0:00:12]}  Nc2+ {[%clk 0:00:18]} 34. Ke2 {[%clk 0:00:12]}  Nxa1 {[%clk 0:00:18]} 35. Rxa1 {[%clk 0:00:13]}  Nd3 {[%clk 0:00:15]} 36. Bh2 {[%clk 0:00:11]}  Nc5 {[%clk 0:00:11]} 37. bxc4 {[%clk 0:00:11]}  d4 {[%clk 0:00:11]} 38. Rd1 {[%clk 0:00:11]}  d3+ {[%clk 0:00:10]} 39. Rxd3+ {[%clk 0:00:11]}  Nxd3 {[%clk 0:00:10]} 40. Kxd3 {[%clk 0:00:12]}  Rb8 {[%clk 0:00:10]} 41. Kxc3 {[%clk 0:00:12]}  Rb1 {[%clk 0:00:09]} 42. Ng3 {[%clk 0:00:13]}  Ra1 {[%clk 0:00:08]} 43. Ne4 {[%clk 0:00:12]}  Rxa2 {[%clk 0:00:07]} 44. Bf4 {[%clk 0:00:13]}  a4 {[%clk 0:00:06]} 45. Nd6 {[%clk 0:00:13]}  Be1+ {[%clk 0:00:04]} 46. Kd3 {[%clk 0:00:11]}  a3 {[%clk 0:00:04]} 47. Nxf7 {[%clk 0:00:10]}  Rf2 {[%clk 0:00:03]} 48. Be3 {[%clk 0:00:09]} 1-0


[Site "https://www.chess.com"]

[Event "Titled Tuesday Blitz May 25 2021"]
[White "Kretov, Evgenij"]
[Black "Fernandez, Daniel Howard"]
[WhiteFideId "4167821"]
[BlackFideId "5801605"]
[WhiteElo "2381"]
[BlackElo "2468"]
[Result "1-0"]
[Round "09"]
[TimeControl "180+1"]
[Date "2021.05.25"]
[WhiteClock "0:00:33"]
[BlackClock "0:00:35"]

1. d4 {[%clk 0:03:00]}  Nf6 {[%clk 0:02:59]} 2. c4 {[%clk 0:03:00]}  e6 {[%clk 0:02:59]} 3. Nc3 {[%clk 0:03:00]}  Bb4 {[%clk 0:02:59]} 4. Bg5 {[%clk 0:03:00]}  h6 {[%clk 0:02:58]} 5. Bh4 {[%clk 0:03:00]}  c5 {[%clk 0:02:58]} 6. d5 {[%clk 0:02:59]}  Qa5 {[%clk 0:02:49]} 7. Bxf6 {[%clk 0:02:59]}  gxf6 {[%clk 0:02:50]} 8. Qc2 {[%clk 0:02:59]}  b5 {[%clk 0:02:45]} 9. e3 {[%clk 0:02:56]}  bxc4 {[%clk 0:02:41]} 10. Bxc4 {[%clk 0:02:56]}  Bb7 {[%clk 0:02:37]} 11. Rd1 {[%clk 0:02:48]}  Rg8 {[%clk 0:02:30]} 12. Ne2 {[%clk 0:02:36]}  Rxg2 {[%clk 0:02:11]} 13. dxe6 {[%clk 0:02:33]}  dxe6 {[%clk 0:01:51]} 14. Qh7 {[%clk 0:02:28]}  Ke7 {[%clk 0:01:47]} 15. Qd3 {[%clk 0:01:06]}  Qc7 {[%clk 0:01:40]} 16. Nf4 {[%clk 0:00:56]}  Rg5 {[%clk 0:01:21]} 17. Nxe6 {[%clk 0:00:52]}  Qd7 {[%clk 0:01:06]} 18. Qh7 {[%clk 0:00:46]}  Bxc3+ {[%clk 0:00:53]} 19. bxc3 {[%clk 0:00:44]}  Qc6 {[%clk 0:00:42]} 20. Nxg5 {[%clk 0:00:34]}  Qxh1+ {[%clk 0:00:40]} 21. Ke2 {[%clk 0:00:34]}  Qxd1+ {[%clk 0:00:34]} 22. Kxd1 {[%clk 0:00:33]}  hxg5 {[%clk 0:00:35]} 1-0


[Site "https://www.chess.com"]

[Event "Titled Tuesday Blitz May 25 2021"]
[White "Krivonosov, Oleg"]
[Black "Hebden, Mark L"]
[WhiteFideId "11600349"]
[BlackFideId "400084"]
[WhiteElo "2727"]
[BlackElo "2567"]
[Result "1/2-1/2"]
[Round "09"]
[TimeControl "180+1"]
[Date "2021.05.25"]
[WhiteClock "0:00:45"]
[BlackClock "0:01:13"]

1. Nf3 {[%clk 0:03:00]}  Nf6 {[%clk 0:02:59]} 2. c4 {[%clk 0:03:00]}  g6 {[%clk 0:03:00]} 3. Nc3 {[%clk 0:02:59]}  Bg7 {[%clk 0:03:00]} 4. e4 {[%clk 0:02:59]}  d6 {[%clk 0:03:01]} 5. d4 {[%clk 0:02:59]}  O-O {[%clk 0:03:01]} 6. Be2 {[%clk 0:02:58]}  e5 {[%clk 0:03:02]} 7. O-O {[%clk 0:02:58]}  Nc6 {[%clk 0:03:02]} 8. dxe5 {[%clk 0:02:58]}  Nxe5 {[%clk 0:03:01]} 9. Bf4 {[%clk 0:02:56]}  Nfd7 {[%clk 0:02:45]} 10. Qd2 {[%clk 0:02:53]}  Nxf3+ {[%clk 0:02:44]} 11. Bxf3 {[%clk 0:02:52]}  Ne5 {[%clk 0:02:43]} 12. Be2 {[%clk 0:02:52]}  Be6 {[%clk 0:02:42]} 13. b3 {[%clk 0:02:51]}  c6 {[%clk 0:02:40]} 14. Bh6 {[%clk 0:02:46]}  f5 {[%clk 0:02:21]} 15. Bxg7 {[%clk 0:02:45]}  Kxg7 {[%clk 0:02:21]} 16. exf5 {[%clk 0:02:45]}  Bxf5 {[%clk 0:02:17]} 17. Rad1 {[%clk 0:02:37]}  Nf7 {[%clk 0:02:15]} 18. Qd4+ {[%clk 0:02:32]}  Qf6 {[%clk 0:02:09]} 19. f4 {[%clk 0:02:30]}  Rfe8 {[%clk 0:02:06]} 20. Bf3 {[%clk 0:02:12]}  a6 {[%clk 0:02:03]} 21. Qxf6+ {[%clk 0:02:06]}  Kxf6 {[%clk 0:02:02]} 22. Rfe1 {[%clk 0:02:06]}  Rxe1+ {[%clk 0:02:01]} 23. Rxe1 {[%clk 0:02:06]}  h5 {[%clk 0:02:00]} 24. Kf2 {[%clk 0:02:02]}  Rc8 {[%clk 0:01:56]} 25. Ne4+ {[%clk 0:01:51]}  Bxe4 {[%clk 0:01:53]} 26. Bxe4 {[%clk 0:01:51]}  b5 {[%clk 0:01:50]} 27. Rc1 {[%clk 0:01:49]}  b4 {[%clk 0:01:37]} 28. a3 {[%clk 0:01:41]}  a5 {[%clk 0:01:36]} 29. axb4 {[%clk 0:01:40]}  axb4 {[%clk 0:01:36]} 30. Ra1 {[%clk 0:01:40]}  g5 {[%clk 0:01:36]} 31. g3 {[%clk 0:01:36]}  gxf4 {[%clk 0:01:35]} 32. gxf4 {[%clk 0:01:36]}  Nd8 {[%clk 0:01:25]} 33. Ra6 {[%clk 0:01:25]}  Ne6 {[%clk 0:01:24]} 34. Rxc6 {[%clk 0:01:12]}  Rxc6 {[%clk 0:01:22]} 35. Bxc6 {[%clk 0:01:13]}  Nxf4 {[%clk 0:01:22]} 36. Ke3 {[%clk 0:01:04]}  Ke5 {[%clk 0:01:22]} 37. h4 {[%clk 0:00:54]}  Ng6 {[%clk 0:01:20]} 38. Be8 {[%clk 0:00:53]}  Nxh4 {[%clk 0:01:19]} 39. Bxh5 {[%clk 0:00:54]}  Nf5+ {[%clk 0:01:19]} 40. Kd3 {[%clk 0:00:53]}  Nd4 {[%clk 0:01:19]} 41. Bd1 {[%clk 0:00:53]}  d5 {[%clk 0:01:18]} 42. cxd5 {[%clk 0:00:51]}  Kxd5 {[%clk 0:01:18]} 43. Bh5 {[%clk 0:00:48]}  Kc5 {[%clk 0:01:15]} 44. Bf7 {[%clk 0:00:47]}  Nc6 {[%clk 0:01:13]} 45. Bg8 {[%clk 0:00:45]} 1/2-1/2


[Site "https://www.chess.com"]

[Event "Titled Tuesday Blitz May 25 2021"]
[White "Langner, Ladislav"]
[Black "Provotorov, Ivan"]
[WhiteFideId "300403"]
[BlackFideId "4154657"]
[WhiteElo "2346"]
[BlackElo "2244"]
[Result "0-1"]
[Round "09"]
[TimeControl "180+1"]
[Date "2021.05.25"]
[WhiteClock "0:00:06"]
[BlackClock "0:00:24"]

1. e4 {[%clk 0:03:00]}  e6 {[%clk 0:02:59]} 2. d4 {[%clk 0:03:00]}  d5 {[%clk 0:03:00]} 3. e5 {[%clk 0:03:00]}  c5 {[%clk 0:03:00]} 4. c3 {[%clk 0:03:01]}  Qb6 {[%clk 0:03:00]} 5. Nf3 {[%clk 0:03:01]}  Nc6 {[%clk 0:03:00]} 6. a3 {[%clk 0:03:01]}  f6 {[%clk 0:02:47]} 7. Bd3 {[%clk 0:03:00]}  c4 {[%clk 0:02:36]} 8. Bc2 {[%clk 0:02:56]}  fxe5 {[%clk 0:02:36]} 9. Nxe5 {[%clk 0:02:56]}  Nxe5 {[%clk 0:02:35]} 10. dxe5 {[%clk 0:02:55]}  g6 {[%clk 0:02:35]} 11. O-O {[%clk 0:02:40]}  Bg7 {[%clk 0:02:33]} 12. Qe2 {[%clk 0:02:36]}  Nh6 {[%clk 0:02:31]} 13. Be3 {[%clk 0:02:35]}  Qc7 {[%clk 0:02:24]} 14. Bd4 {[%clk 0:02:19]}  O-O {[%clk 0:02:23]} 15. Nd2 {[%clk 0:02:17]}  Nf5 {[%clk 0:02:23]} 16. Nf3 {[%clk 0:02:14]}  Bd7 {[%clk 0:02:20]} 17. h3 {[%clk 0:02:05]}  b5 {[%clk 0:02:13]} 18. g4 {[%clk 0:01:49]}  Ne7 {[%clk 0:02:02]} 19. Nh4 {[%clk 0:01:31]}  Bh6 {[%clk 0:01:11]} 20. Ng2 {[%clk 0:01:30]}  g5 {[%clk 0:01:03]} 21. Qe3 {[%clk 0:01:18]}  Ng6 {[%clk 0:00:56]} 22. h4 {[%clk 0:01:14]}  Nf4 {[%clk 0:00:52]} 23. Bc5 {[%clk 0:00:50]}  gxh4 {[%clk 0:00:27]} 24. Bxf8 {[%clk 0:00:36]}  Rxf8 {[%clk 0:00:28]} 25. Nxf4 {[%clk 0:00:22]}  Bxf4 {[%clk 0:00:22]} 26. Qh3 {[%clk 0:00:21]}  Qxe5 {[%clk 0:00:21]} 27. Rae1 {[%clk 0:00:20]}  Qg5 {[%clk 0:00:18]} 28. f3 {[%clk 0:00:19]}  e5 {[%clk 0:00:18]} 29. Re2 {[%clk 0:00:19]}  Bg3 {[%clk 0:00:18]} 30. Kg2 {[%clk 0:00:17]}  h5 {[%clk 0:00:18]} 31. Bf5 {[%clk 0:00:13]}  Rxf5 {[%clk 0:00:17]} 32. gxf5 {[%clk 0:00:14]}  Bxf5 {[%clk 0:00:18]} 33. Qh1 {[%clk 0:00:10]}  h3+ {[%clk 0:00:18]} 34. Kg1 {[%clk 0:00:09]}  Bh4+ {[%clk 0:00:18]} 35. Rg2 {[%clk 0:00:07]}  hxg2 {[%clk 0:00:18]} 36. Qxg2 {[%clk 0:00:07]}  Qxg2+ {[%clk 0:00:18]} 37. Kxg2 {[%clk 0:00:07]}  Bg5 {[%clk 0:00:18]} 38. Rd1 {[%clk 0:00:08]}  Bd3 {[%clk 0:00:18]} 39. Kf2 {[%clk 0:00:07]}  Kg7 {[%clk 0:00:18]} 40. Kg2 {[%clk 0:00:07]}  Kf6 {[%clk 0:00:17]} 41. b3 {[%clk 0:00:06]}  Kf5 {[%clk 0:00:14]} 42. bxc4 {[%clk 0:00:06]}  bxc4 {[%clk 0:00:14]} 43. a4 {[%clk 0:00:06]}  d4 {[%clk 0:00:15]} 44. cxd4 {[%clk 0:00:05]}  exd4 {[%clk 0:00:15]} 45. a5 {[%clk 0:00:04]}  Ke5 {[%clk 0:00:14]} 46. a6 {[%clk 0:00:04]}  Be2 {[%clk 0:00:14]} 47. Rb1 {[%clk 0:00:03]}  c3 {[%clk 0:00:14]} 48. Rb7 {[%clk 0:00:03]}  c2 {[%clk 0:00:14]} 49. Rc7 {[%clk 0:00:02]}  c1=Q {[%clk 0:00:13]} 50. Rxc1 {[%clk 0:00:02]}  Bxc1 {[%clk 0:00:14]} 51. f4+ {[%clk 0:00:02]}  Kxf4 {[%clk 0:00:13]} 52. Kf2 {[%clk 0:00:03]}  Bxa6 {[%clk 0:00:13]} 53. Kg1 {[%clk 0:00:02]}  Bb7 {[%clk 0:00:13]} 54. Kh2 {[%clk 0:00:02]}  Ke4 {[%clk 0:00:14]} 55. Kg3 {[%clk 0:00:02]}  Kd5 {[%clk 0:00:15]} 56. Kh4 {[%clk 0:00:02]}  Bc8 {[%clk 0:00:16]} 57. Kxh5 {[%clk 0:00:03]}  Bd7 {[%clk 0:00:16]} 58. Kh4 {[%clk 0:00:03]}  Be8 {[%clk 0:00:17]} 59. Kg3 {[%clk 0:00:04]}  a6 {[%clk 0:00:18]} 60. Kf2 {[%clk 0:00:04]}  a5 {[%clk 0:00:19]} 61. Ke1 {[%clk 0:00:04]}  a4 {[%clk 0:00:20]} 62. Kd1 {[%clk 0:00:05]}  a3 {[%clk 0:00:21]} 63. Kxc1 {[%clk 0:00:05]}  a2 {[%clk 0:00:22]} 64. Kb2 {[%clk 0:00:05]}  a1=Q+ {[%clk 0:00:23]} 65. Kxa1 {[%clk 0:00:05]}  Ke4 {[%clk 0:00:23]} 66. Kb1 {[%clk 0:00:05]}  Ke3 {[%clk 0:00:24]} 67. Kc1 {[%clk 0:00:06]}  Ke2 {[%clk 0:00:24]} 0-1


[Site "https://www.chess.com"]

[Event "Titled Tuesday Blitz May 25 2021"]
[White "Lazavik, Denis"]
[Black "Rustemov, Alexander"]
[WhiteFideId "13515110"]
[BlackFideId "4119002"]
[WhiteElo "2436"]
[BlackElo "2720"]
[Result "1/2-1/2"]
[Round "09"]
[TimeControl "180+1"]
[Date "2021.05.25"]
[WhiteClock "0:00:03"]
[BlackClock "0:00:16"]

1. d4 {[%clk 0:03:00]}  d5 {[%clk 0:02:59]} 2. c4 {[%clk 0:02:59]}  dxc4 {[%clk 0:02:56]} 3. Nf3 {[%clk 0:02:59]}  Nf6 {[%clk 0:02:56]} 4. e3 {[%clk 0:02:58]}  e6 {[%clk 0:02:55]} 5. Bxc4 {[%clk 0:02:58]}  c5 {[%clk 0:02:55]} 6. O-O {[%clk 0:02:51]}  a6 {[%clk 0:02:54]} 7. b3 {[%clk 0:02:47]}  b5 {[%clk 0:02:45]} 8. Be2 {[%clk 0:02:45]}  Bb7 {[%clk 0:02:39]} 9. a4 {[%clk 0:02:40]}  bxa4 {[%clk 0:02:36]} 10. Rxa4 {[%clk 0:02:35]}  Nbd7 {[%clk 0:02:15]} 11. Nbd2 {[%clk 0:02:14]}  Be7 {[%clk 0:02:10]} 12. Nc4 {[%clk 0:02:08]}  O-O {[%clk 0:02:08]} 13. Bb2 {[%clk 0:01:54]}  Nb6 {[%clk 0:02:05]} 14. Ra1 {[%clk 0:01:48]}  Nxc4 {[%clk 0:01:59]} 15. Bxc4 {[%clk 0:01:49]}  Qb6 {[%clk 0:01:50]} 16. Qe2 {[%clk 0:01:47]}  a5 {[%clk 0:01:35]} 17. Rfd1 {[%clk 0:01:39]}  Rfd8 {[%clk 0:01:34]} 18. Ne5 {[%clk 0:01:29]}  cxd4 {[%clk 0:01:29]} 19. Bxd4 {[%clk 0:01:27]}  Bc5 {[%clk 0:01:26]} 20. Bb2 {[%clk 0:01:23]}  Rxd1+ {[%clk 0:01:18]} 21. Qxd1 {[%clk 0:01:09]}  a4 {[%clk 0:01:15]} 22. Nd3 {[%clk 0:01:07]}  a3 {[%clk 0:01:09]} 23. Bxf6 {[%clk 0:00:36]}  gxf6 {[%clk 0:01:09]} 24. Qg4+ {[%clk 0:00:36]}  Kf8 {[%clk 0:01:08]} 25. Qh4 {[%clk 0:00:35]}  Ke7 {[%clk 0:01:05]} 26. Qxh7 {[%clk 0:00:32]}  Bd6 {[%clk 0:01:01]} 27. Qh4 {[%clk 0:00:25]}  Rg8 {[%clk 0:00:45]} 28. Ne1 {[%clk 0:00:25]}  Qb4 {[%clk 0:00:42]} 29. Qh7 {[%clk 0:00:16]}  Qc3 {[%clk 0:00:40]} 30. Rd1 {[%clk 0:00:14]}  Rd8 {[%clk 0:00:34]} 31. Qb1 {[%clk 0:00:14]}  Bxh2+ {[%clk 0:00:30]} 32. Kxh2 {[%clk 0:00:14]}  Rxd1 {[%clk 0:00:31]} 33. Qxd1 {[%clk 0:00:14]}  a2 {[%clk 0:00:31]} 34. Nc2 {[%clk 0:00:14]}  Be4 {[%clk 0:00:31]} 35. Na1 {[%clk 0:00:15]}  Bb1 {[%clk 0:00:30]} 36. Qd4 {[%clk 0:00:15]}  Qb4 {[%clk 0:00:22]} 37. Qa7+ {[%clk 0:00:14]}  Kf8 {[%clk 0:00:22]} 38. Qd4 {[%clk 0:00:13]}  e5 {[%clk 0:00:21]} 39. Qd5 {[%clk 0:00:11]}  Bg6 {[%clk 0:00:20]} 40. Qd1 {[%clk 0:00:09]}  Qc3 {[%clk 0:00:20]} 41. Bd5 {[%clk 0:00:05]}  Bb1 {[%clk 0:00:17]} 42. Qh5 {[%clk 0:00:05]}  Bg6 {[%clk 0:00:16]} 43. Qd1 {[%clk 0:00:05]}  Bb1 {[%clk 0:00:16]} 44. Qh5 {[%clk 0:00:05]}  Bg6 {[%clk 0:00:16]} 45. Qd1 {[%clk 0:00:03]} 1/2-1/2


[Site "https://www.chess.com"]

[Event "Titled Tuesday Blitz May 25 2021"]
[White "Maiorov, Nikita"]
[Black "The_filthy"]
[WhiteFideId "13501720"]
[WhiteElo "2440"]
[BlackElo "2422"]
[Result "1-0"]
[Round "09"]
[TimeControl "180+1"]
[Date "2021.05.25"]
[WhiteClock "0:01:28"]
[BlackClock "0:00:17"]

1. d4 {[%clk 0:02:59]}  d5 {[%clk 0:02:59]} 2. c4 {[%clk 0:02:54]}  c6 {[%clk 0:02:59]} 3. Nc3 {[%clk 0:02:53]}  Nf6 {[%clk 0:03:00]} 4. e3 {[%clk 0:02:53]}  g6 {[%clk 0:02:59]} 5. Nf3 {[%clk 0:02:53]}  Bg7 {[%clk 0:02:59]} 6. Be2 {[%clk 0:02:53]}  dxc4 {[%clk 0:02:59]} 7. Bxc4 {[%clk 0:02:52]}  O-O {[%clk 0:02:59]} 8. O-O {[%clk 0:02:52]}  Bg4 {[%clk 0:03:00]} 9. Be2 {[%clk 0:02:50]}  Bxf3 {[%clk 0:02:58]} 10. Bxf3 {[%clk 0:02:49]}  Nbd7 {[%clk 0:02:59]} 11. b4 {[%clk 0:02:46]}  e5 {[%clk 0:02:58]} 12. Rb1 {[%clk 0:02:45]}  Re8 {[%clk 0:02:42]} 13. b5 {[%clk 0:02:43]}  e4 {[%clk 0:02:38]} 14. Be2 {[%clk 0:02:42]}  Nb6 {[%clk 0:02:38]} 15. bxc6 {[%clk 0:02:40]}  bxc6 {[%clk 0:02:38]} 16. Qc2 {[%clk 0:02:40]}  Nbd5 {[%clk 0:02:26]} 17. Na4 {[%clk 0:02:38]}  Rc8 {[%clk 0:02:23]} 18. Bd2 {[%clk 0:02:37]}  Qd6 {[%clk 0:02:10]} 19. Ba5 {[%clk 0:02:32]}  h5 {[%clk 0:02:03]} 20. h3 {[%clk 0:02:30]}  Bh6 {[%clk 0:02:02]} 21. Rb3 {[%clk 0:02:26]}  g5 {[%clk 0:01:40]} 22. g4 {[%clk 0:02:00]}  hxg4 {[%clk 0:01:33]} 23. hxg4 {[%clk 0:01:59]}  Bf8 {[%clk 0:01:13]} 24. Nc5 {[%clk 0:01:57]}  Nd7 {[%clk 0:00:55]} 25. Nxd7 {[%clk 0:01:50]}  Qxd7 {[%clk 0:00:54]} 26. Kg2 {[%clk 0:01:49]}  Bd6 {[%clk 0:00:53]} 27. Rh1 {[%clk 0:01:47]}  Kg7 {[%clk 0:00:53]} 28. Rh5 {[%clk 0:01:46]}  f6 {[%clk 0:00:49]} 29. Qb1 {[%clk 0:01:42]}  Rh8 {[%clk 0:00:34]} 30. Rb7 {[%clk 0:01:40]}  Nc7 {[%clk 0:00:30]} 31. Rxh8 {[%clk 0:01:37]}  Rxh8 {[%clk 0:00:29]} 32. Qxe4 {[%clk 0:01:36]}  Rh2+ {[%clk 0:00:21]} 33. Kg1 {[%clk 0:01:36]}  Qf7 {[%clk 0:00:17]} 34. Bxc7 {[%clk 0:01:28]}  Bxc7 {[%clk 0:00:17]} 35. Qxc6 {[%clk 0:01:28]} 1-0


[Site "https://www.chess.com"]

[Event "Titled Tuesday Blitz May 25 2021"]
[White "Maly, Alexey"]
[Black "Vlassov, Nikolai"]
[WhiteFideId "14103184"]
[BlackFideId "4103360"]
[WhiteElo "2751"]
[BlackElo "2587"]
[Result "1-0"]
[Round "09"]
[TimeControl "180+1"]
[Date "2021.05.25"]
[WhiteClock "0:00:09"]
[BlackClock "0:00:03"]

1. d4 {[%clk 0:03:00]}  Nf6 {[%clk 0:02:59]} 2. c4 {[%clk 0:03:00]}  Nc6 {[%clk 0:02:59]} 3. Nf3 {[%clk 0:03:00]}  e6 {[%clk 0:02:59]} 4. a3 {[%clk 0:02:59]}  g6 {[%clk 0:02:59]} 5. Nc3 {[%clk 0:02:57]}  Bg7 {[%clk 0:02:59]} 6. g3 {[%clk 0:02:56]}  O-O {[%clk 0:02:58]} 7. Bg2 {[%clk 0:02:54]}  d6 {[%clk 0:02:55]} 8. O-O {[%clk 0:02:54]}  e5 {[%clk 0:02:55]} 9. d5 {[%clk 0:02:53]}  Ne7 {[%clk 0:02:55]} 10. e4 {[%clk 0:02:53]}  Nh5 {[%clk 0:02:49]} 11. Ne1 {[%clk 0:02:53]}  Bd7 {[%clk 0:02:43]} 12. Nd3 {[%clk 0:02:53]}  Qe8 {[%clk 0:02:42]} 13. Bd2 {[%clk 0:02:41]}  f5 {[%clk 0:02:41]} 14. f4 {[%clk 0:02:34]}  exf4 {[%clk 0:02:41]} 15. Nxf4 {[%clk 0:02:33]}  Nxf4 {[%clk 0:02:37]} 16. Rxf4 {[%clk 0:02:25]}  fxe4 {[%clk 0:02:33]} 17. Rxe4 {[%clk 0:02:16]}  Bf5 {[%clk 0:02:28]} 18. Re1 {[%clk 0:02:14]}  Qd7 {[%clk 0:02:23]} 19. Bg5 {[%clk 0:02:04]}  Rae8 {[%clk 0:02:22]} 20. Qd2 {[%clk 0:02:04]}  Bg4 {[%clk 0:02:05]} 21. Bh6 {[%clk 0:01:56]}  Bh3 {[%clk 0:01:42]} 22. Bxg7 {[%clk 0:01:55]}  Kxg7 {[%clk 0:01:42]} 23. Qd4+ {[%clk 0:01:54]}  Kg8 {[%clk 0:01:41]} 24. Ne4 {[%clk 0:01:53]}  Bxg2 {[%clk 0:01:38]} 25. Kxg2 {[%clk 0:01:38]}  Qf5 {[%clk 0:01:24]} 26. Rf1 {[%clk 0:01:35]}  Nc6 {[%clk 0:01:18]} 27. Nf6+ {[%clk 0:01:14]}  Rxf6 {[%clk 0:00:56]} 28. Qxf6 {[%clk 0:01:12]}  Re2+ {[%clk 0:00:38]} 29. Kg1 {[%clk 0:01:10]}  Qxf6 {[%clk 0:00:34]} 30. Rxf6 {[%clk 0:01:10]}  Ne5 {[%clk 0:00:31]} 31. Raf1 {[%clk 0:01:02]}  Rxb2 {[%clk 0:00:28]} 32. Rf8+ {[%clk 0:01:02]}  Kg7 {[%clk 0:00:28]} 33. Rc8 {[%clk 0:01:02]}  g5 {[%clk 0:00:20]} 34. Rxc7+ {[%clk 0:01:03]}  Kg6 {[%clk 0:00:20]} 35. c5 {[%clk 0:00:54]}  dxc5 {[%clk 0:00:18]} 36. d6 {[%clk 0:00:50]}  g4 {[%clk 0:00:17]} 37. Rxc5 {[%clk 0:00:38]}  Nd7 {[%clk 0:00:06]} 38. Rc7 {[%clk 0:00:33]}  Ne5 {[%clk 0:00:05]} 39. Rc5 {[%clk 0:00:22]}  Nd7 {[%clk 0:00:05]} 40. Rc4 {[%clk 0:00:22]}  h5 {[%clk 0:00:04]} 41. Re4 {[%clk 0:00:20]}  Rd2 {[%clk 0:00:03]} 42. Re6+ {[%clk 0:00:19]}  Kg5 {[%clk 0:00:04]} 43. Rf2 {[%clk 0:00:20]}  Rd1+ {[%clk 0:00:03]} 44. Kg2 {[%clk 0:00:20]}  h4 {[%clk 0:00:03]} 45. gxh4+ {[%clk 0:00:18]}  Kxh4 {[%clk 0:00:03]} 46. Rg6 {[%clk 0:00:15]}  Nc5 {[%clk 0:00:03]} 47. Rf4 {[%clk 0:00:13]}  Rd2+ {[%clk 0:00:03]} 48. Kg1 {[%clk 0:00:14]}  Rd1+ {[%clk 0:00:03]} 49. Kg2 {[%clk 0:00:14]}  Rd2+ {[%clk 0:00:03]} 50. Kf1 {[%clk 0:00:14]}  Rxh2 {[%clk 0:00:02]} 51. Rgxg4+ {[%clk 0:00:13]}  Kh3 {[%clk 0:00:03]} 52. Rh4+ {[%clk 0:00:14]}  Kg3 {[%clk 0:00:03]} 53. Rxh2 {[%clk 0:00:14]}  Kxf4 {[%clk 0:00:04]} 54. Re2 {[%clk 0:00:12]}  Kf5 {[%clk 0:00:04]} 55. Re7 {[%clk 0:00:11]}  b5 {[%clk 0:00:04]} 56. Rxa7 {[%clk 0:00:10]}  Ke6 {[%clk 0:00:03]} 57. Ra5 {[%clk 0:00:10]}  Kxd6 {[%clk 0:00:03]} 58. Rxb5 {[%clk 0:00:11]}  Kc6 {[%clk 0:00:03]} 59. Rb4 {[%clk 0:00:10]}  Nd3 {[%clk 0:00:03]} 60. Rb1 {[%clk 0:00:10]}  Nc5 {[%clk 0:00:02]} 61. Ke2 {[%clk 0:00:10]}  Na4 {[%clk 0:00:01]} 62. Kd3 {[%clk 0:00:10]}  Nb6 {[%clk 0:00:02]} 63. Kd4 {[%clk 0:00:09]}  Kb7 {[%clk 0:00:02]} 64. Kc5 {[%clk 0:00:08]}  Ka6 {[%clk 0:00:02]} 65. Rxb6+ {[%clk 0:00:09]}  Ka5 {[%clk 0:00:03]} 66. Rb4 {[%clk 0:00:09]}  Ka6 {[%clk 0:00:03]} 67. Rb5 {[%clk 0:00:09]} 1-0


[Site "https://www.chess.com"]